{"text_format":"1","workbook":"xlsx","n_sheets":2,"sheets":["Présentation","Radiopharmaceutiques"],"not_rendered":{"charts":0,"images":1,"macros":1,"external_links":0,"defined_names":2,"comments":0,"pivot_tables":0},"unopened":[],"bounds":{"document_bytes":16777216,"sheet_cells":100000,"rows_first":2000,"rows_last":500,"rows_between":2000,"halvings":0,"cell_chars":16384,"cell_head_chars":4096},"cells_cut":0,"cells_raw":0,"read":"whole","date_system":"1900"}

{"sheet":"Présentation","index":0,"n_rows":32,"n_cols":7,"rows_kept":32,"cut":false,"hidden":false,"merged":[[29,0,29,3],[30,0,30,3],[0,1,0,4],[1,1,1,4],[2,1,2,3],[3,1,3,3],[4,1,4,3],[15,0,15,3],[16,0,16,3],[17,0,17,3],[7,0,7,5],[12,0,12,5],[2,4,2,5],[27,0,27,3],[28,0,28,3],[0,5,1,5]]}
["C:\\Users\\fcachin\\OneDrive - CentreJeanPerrin\\Documents\\logo_2018_fond_transparent_400_200.png","Calcul de durée de restriction des contacts",null,null,null,"Mise à disposition par la SFPM et la SFMN"]
[null,"après radiothérapie interne vectorisée  RIV"]
[null,"établi le",null,null,{"$f":"TODAY()","v":"2023-03-24"}]
["Nom",null,null,null,"Date du traitement"]
["Prénom",null,null,null,"Opérateur","?"]
["Né-e le",null,null,null,"Appareillage","?"]
[]
["Eléments obligatoires à préciser (en jaune)"]
["Isotope (menu déroulant)",null,null,{"$f":"IF(F9=\"Iode-131-0%-fixation\",Radiopharmaceutiques!E2,IF(F9=\"Iode-131-5%-fixation\",Radiopharmaceutiques!E3, IF(F9=\"Iode-131-25%-fixation\",Radiopharmaceutiques!E4,IF(F9=\"Iode-131-45%-fixation\",Radiopharmaceutiques!E5,\"\"))))","v":"Cancer poly-métastasé"},null,"Iode-131-25%-fixation"]
["Débit de dose à 1m (µSv/h) en sortie de chambre",null,null,null,null,20]
["Taille patient (cm)",null,null,null,null,160]
[]
["Eléments optionnels (en bleu)"]
[{"$f":"IF(F9=\"Non défini\", \"Période effective (j) (obligatoire à renseigner dans ce cas)\",\"Période effective (j) imposée par l'utilisateur (laisser vide sinon)\")","v":"Période effective (j) imposée par l'utilisateur (laisser vide sinon)"}]
["Scénario utilisateur (éventuel)",null,null,null,"Temps (h)","Distance (m)"]
["Durée à la distance X",null,null,null,8,0.3]
["Durée à 1 m (valeur non nulle obligatoire)",null,null,null,3,1]
["Limite dosimétrique (mSv)",null,null,null,1,{"$f":"IF(F9=\"Non défini\",IF(F14=\"\",\"Erreur\"))","v":false}]
[]
[null,null,null,null,"Période effective retenue en jours :",{"$f":"IF(F14=\"\",IF(F9=\"Non défini\",\"Renseigner la période\", (VLOOKUP((F9),(Radiopharmaceutiques!$A$2:$B$15),2,0)/24)), F14)","v":2.5299999999999998}]
[null,null,null,null,"Période effective retenue en heures :",{"$f":"IF(F18=\"Erreur\",\"\",F20*24)","v":60.72}]
[]
["Scénario",null,null,null,"Durée restriction (jours)","Conditions"]
["Contact avec le (la) conjoint(e) > 60 ans",null,null,null,{"$f":"IF(AND(F14=0,F18=\"Erreur\"),\"\",IF(Radiopharmaceutiques!J40<0,0,ROUND(Radiopharmaceutiques!J40,0)))","v":0},"8 h à 0,3 m et 3 h à 1 m,\n limite 15 mSv "]
["Contact avec le (la) conjoint(e) < 60 ans",null,null,null,{"$f":"IF(AND(F14=0,F18=\"Erreur\"),\"\",IF(Radiopharmaceutiques!J41<0,0,ROUND(Radiopharmaceutiques!J41,0)))","v":1},"8 h à 0,3 m et 3 h à 1 m, \nlimite 3 mSv ","Notice d'utilisation"]
["Contact avec la conjointe enceinte",null,null,null,{"$f":"IF(AND(F14=0,F18=\"Erreur\"),\"\",IF(Radiopharmaceutiques!J42<0,0,ROUND(Radiopharmaceutiques!J42,0)))","v":5},"8 h à 0,3 m et 3 h à 1 m,\n limite 1 mSv "]
["Transport en commun",null,null,null,{"$f":"IF(AND(F14=0,F18=\"Erreur\"),\"\",IF(Radiopharmaceutiques!J43<0,0,ROUND(Radiopharmaceutiques!J43,0)))","v":0},"3 h à 0,5 m, limite 1 mSv "]
["Contact avec un enfant (<3 ans) \n  au retour à la maison",null,null,null,{"$f":"IF(AND(F14=0,F18=\"Erreur\"),\"\",IF(Radiopharmaceutiques!J44<0,0,ROUND(Radiopharmaceutiques!J44,0)))","v":0},"9 h à 1 m, limite 1 mSv "]
["Contact avec un enfant (entre 3 et 11 ans)\n  au retour à la maison",null,null,null,{"$f":"IF(AND(F14=0,F18=\"Erreur\"),\"\",IF(Radiopharmaceutiques!J45<0,0,ROUND(Radiopharmaceutiques!J45,0)))","v":0},"2 h à 0,5 m et 2 h à 1 m, \nlimite 1 mSv "]
["Contact avec des collègues de travail",null,null,null,{"$f":"IF(AND(F14=0,F18=\"Erreur\"),\"\",IF(Radiopharmaceutiques!J46<0,0,ROUND(Radiopharmaceutiques!J46,0)))","v":0},"6 h à 1 m, limite 1 mSv "]
["Scénario utilisateur",null,null,null,{"$f":"IF(E17>0, IF(ISERROR(Radiopharmaceutiques!J47),\"-\", IF(Radiopharmaceutiques!J47<0,0, ROUND(Radiopharmaceutiques!J47,0))),\"-\")","v":5},{"$f":"CONCATENATE(E16,\" h à \",F16,\" m et \",E17,\" h à \",F17,\" m,\",CHAR(10),\" limite \",E18,\" mSv\")","v":"8 h à 0,3 m et 3 h à 1 m,\n limite 1 mSv"}]
["Version 1.3 du 13/03/2023",null,null,null,null,{"$f":"CONCATENATE(\"Heure d'impression : \", HOUR(NOW()), \" h \", MINUTE(NOW()))","v":"Heure d'impression : 8 h 37"}]

{"sheet":"Radiopharmaceutiques","index":1,"n_rows":47,"n_cols":12,"rows_kept":47,"cut":false,"hidden":false,"merged":[[4,7,4,11],[7,7,8,7],[13,7,14,7]]}
["Radiopharmaceutique","Periode effective en heure","Reference","Remarque","Situation clinique"]
["Iode-131-0%-fixation",11.1,"ICRP53",null,"Cancer opéré"]
["Iode-131-5%-fixation",12.1,"ICRP53","en considérant la période au niveau de la thyroïde","Cancer oligo-métastasé"]
["Iode-131-25%-fixation",{"$f":"2.53*24","v":60.72},"ICRP53","en considérant la période au niveau de la thyroïde","Cancer poly-métastasé"]
["Iode-131-45%-fixation",{"$f":"4.56*24","v":109.44},"ICRP53","en considérant la période au niveau de la thyroïde","Maladie de Basedow"]
["Radium-223",{"$f":"11.43*24","v":274.32},null,"Demi vie physique"]
["PSMA-177Lu",40,"EANM procedure guidelines for radionuclide therapy with 177Lu-labelled PSMA-ligands  2019","Valeur la plus longue proposée",null,null,null,"Description scénario","Temps (h)","Distance (m)","Limite dosimétrique (mSv)"]
["Synovectomie-90Y",{"$f":"2.67*24","v":64.08},"EANM Procedure Guidelines for Radiosynovectomy 2003","Demi vie physique",null,null,null,"Contact avec le (la) conjoint(e)",8,0.3,15,"Si age > 60 ans"]
["Synovectomie-186Re",{"$f":"3.7*24","v":88.800000000000011},"EANM Procedure Guidelines for Radiosynovectomy 2003","Demi vie physique",null,null,null,null,3,1,3,"Si age < 60 ans"]
["Synovectomie-169Er",{"$f":"9.4*24","v":225.60000000000002},"EANM Procedure Guidelines for Radiosynovectomy 2003","Demi vie physique",null,null,null,"Contact conjointe enceinte",8,0.3,1]
["Microsphères-90Y",64.2,"EANM procedure guideline for the treatment of liver cancer and liver metastases with intra-arterial radioactive compounds 2011","Demi vie physique",null,null,null,null,3,1]
["Lipiodol-131I",{"$f":"8.04*24","v":192.95999999999998},"EANM procedure guideline for the treatment of liver cancer and liver metastases with intra-arterial radioactive compounds 2011","Demi vie physique",null,null,null,"Transport en commun",3,0.5,1]
["Lutétium-177 NET",100,"Fitschen et al, Z Med Phys 2011, Levart et al, EJNMMI Phys 2019","Demi vie effective",null,null,null,"Contact avec un enfant (<3 ans) au retour à la maison",9,1,1]
["MIBG-131I",{"$f":"1.4*24","v":33.599999999999994},"ICRP53","période biologique la plus longue",null,null,null,"Contact avec un enfant (entre 3 et 11 ans) au retour à la maison",2,0.5,1]
["Non défini",null,null,null,null,null,null,null,2,1]
[null,null,null,null,null,null,null,"Contact avec des collègues de travail",6,1,1]
[null,null,null,null,null,null,null,"Scénario distance 1",{"$f":"Présentation!E16","v":8},{"$f":"Présentation!F16","v":0.3},{"$f":"Présentation!E18","v":1}]
[null,null,null,null,null,null,null,"Scénario distance 2",{"$f":"Présentation!E17","v":3},{"$f":"Présentation!F17","v":1}]
[]
[]
[null,null,null,null,null,null,null,"Facteur commun",{"$f":"(Présentation!F20*24/LN(2))/(1-EXP(-(LN(2)/Présentation!F20)))","v":365.54095694932107}]
[]
[null,null,null,null,null,null,null,"Paramètre commun","Facteur k"]
[]
[]
[null,null,null,null,null,null,null,{"$f":"(1-EXP(-((LN(2)/Présentation!$F$20)*(I8/24))))","v":8.7277820887695423E-2},{"$f":"ATAN(Présentation!$F$11/(2*J8*100))/(Présentation!$F$11*J8/200)","v":5.0501069021846847}]
[null,null,null,null,null,null,null,{"$f":"(1-EXP(-((LN(2)/Présentation!$F$20)*(I9/24))))","v":3.366663136939585E-2},1]
[null,null,null,null,null,null,null,{"$f":"(1-EXP(-((LN(2)/Présentation!$F$20)*(I12/24))))","v":3.366663136939585E-2},{"$f":"ATAN(Présentation!$F$11/(2*J12*100))/(Présentation!$F$11*J12/200)","v":2.5304925286283351}]
[null,null,null,null,null,null,null,{"$f":"(1-EXP(-((LN(2)/Présentation!$F$20)*(I13/24))))","v":9.7637727081173131E-2},1]
[null,null,null,null,null,null,null,{"$f":"(1-EXP(-((LN(2)/Présentation!$F$20)*(I14/24))))","v":2.2572281183125376E-2},{"$f":"ATAN(Présentation!$F$11/(2*J14*100))/(Présentation!$F$11*J14/200)","v":2.5304925286283351}]
[null,null,null,null,null,null,null,{"$f":"(1-EXP(-((LN(2)/Présentation!$F$20)*(I15/24))))","v":2.2572281183125376E-2},1]
[null,null,null,null,null,null,null,{"$f":"(1-EXP(-((LN(2)/Présentation!$F$20)*(I16/24))))","v":6.6199820671028919E-2},{"$f":"ATAN(Présentation!$F$11/(2*J16*100))/(Présentation!$F$11*J16/200)","v":0.84342617777944084}]
[null,null,null,null,null,null,null,{"$f":"(1-EXP(-((LN(2)/Présentation!$F$20)*(I17/24))))","v":8.7277820887695423E-2},{"$f":"ATAN(Présentation!$F$11/(2*J17*100))/(Présentation!$F$11*J17/200)","v":5.0501069021846847}]
[null,null,null,null,null,null,null,{"$f":"(1-EXP(-((LN(2)/Présentation!$F$20)*(I18/24))))","v":3.366663136939585E-2},1]
[]
[]
[]
[]
[null,null,null,null,null,null,null,"Dénominateur","Ratio","Jour"]
[null,null,null,null,null,null,null,{"$f":"(H26*I26+H27*I27)*$I$21","v":173.42321496159559},{"$f":"K8*1000/H40","v":86.493610462254068},{"$f":"-(Présentation!$F$20/LN(2))*LN(I40/Présentation!$F$10)","v":-5.3448617082016625}]
[null,null,null,null,null,null,null,null,{"$f":"K9*1000/H40","v":17.298722092450813},{"$f":"-(Présentation!$F$20/LN(2))*LN(I41/Présentation!$F$10)","v":0.5296163718633633}]
[null,null,null,null,null,null,null,null,{"$f":"K10*1000/H40","v":5.766240697483604},{"$f":"-(Présentation!$F$20/LN(2))*LN(I42/Présentation!$F$10)","v":4.5395714986878879}]
[null,null,null,null,null,null,null,{"$f":"(H28*I28)*$I$21","v":31.141588919158039},{"$f":"K12*1000/H43","v":32.111399408551328},{"$f":"-(Présentation!$F$20/LN(2))*LN(I43/Présentation!$F$10)","v":-1.7282064131727715}]
[null,null,null,null,null,null,null,{"$f":"(H29*I29)*$I$21","v":35.690588191608668},{"$f":"K13*1000/H44","v":28.018591193605303},{"$f":"-(Présentation!$F$20/LN(2))*LN(I44/Présentation!$F$10)","v":-1.230552575660455}]
[null,null,null,null,null,null,null,{"$f":"(H30*I30+H31*I31)*$I$21","v":29.130423122304759},{"$f":"K14*1000/H45","v":34.328371949884719},{"$f":"-(Présentation!$F$20/LN(2))*LN(I45/Présentation!$F$10)","v":-1.9718856380574632}]
[null,null,null,null,null,null,null,{"$f":"(H32*I32)*$I$21","v":20.409855675430855},{"$f":"K16*1000/H46","v":48.995936860238963},{"$f":"-(Présentation!$F$20/LN(2))*LN(I46/Présentation!$F$10)","v":-3.2704351490153534}]
[null,null,null,null,null,null,null,{"$f":"(H33*I33+H34*I34)*$I$21","v":173.42321496159559},{"$f":"K17*1000/H47","v":5.766240697483604},{"$f":"IF(H47>0,-(Présentation!$F$20/LN(2))*LN(I47/Présentation!$F$10),\"\")","v":4.5395714986878879}]